bitfinex-derivatives/quotes_BTCF0:USTF0_20251025
["timestamp","ask_amount","ask_price","bid_price","bid_amount"]
[1761416777880,0.04433,111540.0,111530.0,0.54172382]
[1761416780878,0.03756425,111550.0,111530.0,0.54172382]
[1761416781084,0.08189425,111550.0,111540.0,0.207934]
[1761416782379,0.05767,111550.0,111540.0,0.207934]
[1761416784079,0.05877425,111560.0,111540.0,0.216934]
[1761416784285,0.08168425,111560.0,111550.0,0.522044]
[1761416784684,0.06855425,111560.0,111550.0,0.522044]
[1761416786185,0.08217425,111560.0,111550.0,0.522044]
[1761416786582,0.1029987,111560.0,111550.0,0.529044]
[1761416789578,0.11104476,111560.0,111550.0,0.529044]
[1761416792989,0.09022031,111560.0,111550.0,0.529044]
[1761416793188,0.11435399,111560.0,111550.0,0.529044]
[1761416796192,0.09022031,111560.0,111550.0,0.529044]
[1761416796682,0.06846927,111560.0,111550.0,0.529044]
[1761416798189,0.02413927,111560.0,111550.0,0.6186806]
[1761416798396,0.06810927,111570.0,111560.0,0.05615]
[1761416798583,0.06810927,111570.0,111560.0,0.206964]
[1761416799586,0.06810927,111570.0,111560.0,0.210964]
[1761416802793,0.06810927,111570.0,111560.0,0.19575718]
[1761416804295,0.08202927,111570.0,111560.0,0.19575718]
[1761416805590,0.06810927,111570.0,111560.0,0.19575718]
[1761416806481,0.08202927,111570.0,111560.0,0.19575718]
[1761416814394,0.08202927,111570.0,111560.0,0.18340718]
[1761416814697,0.21763645,111570.0,111560.0,0.49764718]
[1761416814994,0.08202927,111570.0,111560.0,0.49764718]
[1761416817601,0.21763645,111570.0,111560.0,0.49764718]
[1761416824894,0.21763645,111570.0,111560.0,0.36204]
[1761416825096,0.21763645,111570.0,111560.0,0.49764718]
[1761416825294,0.24990676,111570.0,111560.0,0.49764718]
[1761416827406,0.22576749,111570.0,111560.0,0.49764718]
[1761416827902,0.22576749,111570.0,111560.0,0.36204]
[1761416828108,0.22576749,111570.0,111560.0,0.49764718]
[1761416829611,0.24190265,111570.0,111560.0,0.49764718]
[1761416835109,0.09237547,111570.0,111560.0,0.50999718]
[1761416837813,0.12465218,111570.0,111560.0,0.50999718]
[1761416839617,0.07624671,111570.0,111560.0,0.50999718]
[1761416840919,0.06817802,111570.0,111560.0,0.50999718]
[1761416842013,0.08197802,111570.0,111560.0,0.50999718]
[1761416842916,0.06817802,111570.0,111560.0,0.50999718]
[1761416847122,0.03227671,111570.0,111560.0,0.50999718]
[1761416847622,0.07712671,111570.0,111560.0,0.50999718]
[1761416848124,0.06905882,111570.0,111560.0,0.50999718]
[1761416848724,0.10133553,111570.0,111560.0,0.50999718]
[1761416849224,0.10133553,111570.0,111560.0,0.64560436]
[1761416849225,0.05648553,111570.0,111560.0,0.64560436]
[1761416849425,0.02420882,111570.0,111560.0,0.67768237]
[1761416849725,0.02420882,111570.0,111560.0,0.54207519]
[1761416850222,0.04587882,111570.0,111560.0,0.54207519]
[1761416851718,0.02420882,111570.0,111560.0,0.67768237]
[1761416852222,0.10137553,111580.0,111570.0,0.01262]
[1761416852424,0.10137553,111580.0,111570.0,0.32749436]
[1761416853128,0.06909882,111580.0,111570.0,0.32749436]
[1761416853623,0.06909882,111580.0,111570.0,0.32849436]
[1761416853828,0.02420882,111580.0,111570.0,0.32849436]
[1761416854029,0.04783882,111580.0,111570.0,0.32849436]
[1761416854423,0.02363,111580.0,111570.0,0.36057237]
[1761416856132,0.02363,111580.0,111570.0,0.32849436]
[1761416857934,0.04685,111580.0,111570.0,0.32849436]
[1761416862723,0.04685,111580.0,111570.0,0.20792252]
[1761416869140,0.04685,111580.0,111570.0,0.04466]
[1761416869141,0.06006,111580.0,111570.0,0.04466]
[1761416869742,0.02363,111580.0,111570.0,0.05728]
[1761416869942,0.04685,111580.0,111570.0,0.05728]
[1761416870442,0.06006,111580.0,111570.0,0.04466]
[1761416870641,0.06006,111580.0,111570.0,0.19530252]
[1761416871045,0.06006,111580.0,111570.0,0.20792252]
[1761416872143,0.06006,111580.0,111570.0,0.19530252]
[1761416872444,0.06006,111580.0,111570.0,0.04466]
[1761416876239,0.08420943,111580.0,111570.0,0.04466]
[1761416893660,0.07099943,111580.0,111570.0,0.05728]
[1761416893962,0.08418943,111580.0,111570.0,0.20792252]
[1761416895058,0.08418943,111580.0,111570.0,0.05728]
[1761416895258,0.08418943,111580.0,111570.0,0.04466]
[1761416896861,0.08418943,111580.0,111570.0,0.19530252]
[1761416899161,0.08418943,111580.0,111570.0,0.22738053]
[1761416900258,0.07099943,111580.0,111570.0,0.24000053]
[1761416900464,0.02514943,111580.0,111570.0,0.24000053]
[1761416901354,0.04637943,111580.0,111570.0,0.24000053]
[1761416901857,0.06756943,111580.0,111570.0,0.24000053]
[1761416910762,0.09984614,111580.0,111570.0,0.24000053]
[1761416911270,0.06756943,111580.0,111570.0,0.24000053]
[1761416911673,0.06756943,111580.0,111570.0,0.24896463]
[1761416915168,0.06762723,111580.0,111570.0,0.24896463]
[1761416916371,0.06762717,111580.0,111570.0,0.24896463]
[1761416918269,0.06762717,111580.0,111570.0,0.33858523]
[1761416919672,0.06762717,111580.0,111570.0,0.30650722]
[1761416920570,0.04643717,111580.0,111570.0,0.30650722]
[1761416920776,0.02520717,111580.0,111570.0,0.30650722]
[1761416921075,0.001,111580.0,111570.0,0.38687015]
[1761416921274,0.001,111580.0,111570.0,0.33858523]
[1761416922272,0.06996717,111590.0,111570.0,0.33758523]
[1761416922478,0.06996717,111590.0,111580.0,0.52296252]
[1761416923477,0.07096717,111590.0,111580.0,0.52296252]
[1761416924078,0.07096717,111590.0,111580.0,0.52396252]
[1761416924778,0.07096717,111590.0,111580.0,0.50887209]
[1761416929674,0.04676,111590.0,111580.0,0.50887209]
[1761416932469,0.001,111590.0,111580.0,0.50887209]
[1761416932677,0.001,111590.0,111580.0,0.59848469]
[1761416932879,0.04676,111590.0,111580.0,0.59848469]
[1761416933974,0.04676,111590.0,111580.0,0.50887209]
[1761416938789,0.0479925,111590.0,111580.0,0.50887209]
[1761416941981,0.0479925,111590.0,111580.0,0.59848469]
[1761416944082,0.0247325,111590.0,111580.0,0.59848469]
[1761416944391,0.0247325,111590.0,111580.0,0.63059314]
[1761416944780,0.0022325,111590.0,111580.0,0.63059314]
[1761416945084,0.0022325,111590.0,111580.0,0.54098054]
[1761416948800,0.0022325,111590.0,111580.0,0.63059314]
[1761416953494,0.0022325,111590.0,111580.0,1.36614523]
[1761416953702,0.0022325,111590.0,111580.0,1.38219635]
[1761416954305,0.05041248,111610.0,111600.0,0.1461765]
[1761416954306,0.0044,111610.0,111600.0,0.1461765]
[1761416954497,0.03661248,111630.0,111610.0,0.1464385]
[1761416954696,0.03661248,111630.0,111620.0,0.67466294]
[1761416954697,0.0044,111630.0,111620.0,0.67466294]
[1761416954897,0.0044,111630.0,111620.0,0.81242158]
[1761416955210,0.0044,111630.0,111620.0,0.53907001]
[1761416955211,0.0494,111630.0,111620.0,0.53907001]
[1761416955506,0.0624,111630.0,111620.0,0.50703209]
[1761416957003,0.0494,111630.0,111620.0,0.50703209]
[1761416957311,0.0494,111630.0,111620.0,0.64258418]
[1761416957512,0.0494,111630.0,111620.0,0.50703209]
[1761416958908,0.0044,111630.0,111620.0,0.73216468]
[1761416959117,0.0044,111630.0,111620.0,0.64258418]
[1761416959613,0.02737,111630.0,111620.0,0.64258418]
[1761416960605,0.0044,111630.0,111620.0,0.64258418]
[1761416963916,0.0044,111630.0,111620.0,0.73216468]
[1761416967207,0.0044,111630.0,111620.0,0.37148]
[1761416967413,0.0044,111630.0,111620.0,0.64258418]
[1761416968019,0.0494,111630.0,111620.0,0.50703209]
[1761416968217,0.0494,111630.0,111620.0,0.64258418]
[1761416969321,0.0494,111630.0,111620.0,0.64458418]
[1761416970608,0.02737,111630.0,111620.0,0.64458418]
[1761416970813,0.0494,111630.0,111620.0,0.64458418]
[1761416971119,0.0494,111630.0,111620.0,0.64482418]
[1761416971320,0.0494,111630.0,111620.0,0.64486418]
[1761416971819,0.0044,111630.0,111620.0,0.64486418]
[1761416972121,0.0044,111630.0,111620.0,0.73444468]
[1761416976926,0.0262,111650.0,111640.0,0.05641]
[1761416977221,0.0262,111650.0,111640.0,0.50668209]
[1761416977414,0.0044,111650.0,111640.0,0.64223418]
[1761416977612,0.0044,111650.0,111640.0,0.32751418]
[1761416977813,0.0044,111650.0,111640.0,0.64223418]
[1761416978124,0.0054,111650.0,111640.0,0.64223418]
[1761416978416,0.0084,111650.0,111640.0,0.73179868]
[1761416978927,0.0044,111650.0,111640.0,0.73179868]
[1761416979219,0.0044,111650.0,111640.0,0.64223418]
[1761416979425,0.0044,111650.0,111640.0,0.50668209]
[1761416979618,0.048,111650.0,111640.0,0.50668209]
[1761416980113,0.0262,111650.0,111640.0,0.50668209]
[1761416980320,0.0044,111650.0,111640.0,0.50668209]
[1761416982419,0.048,111650.0,111640.0,0.50668209]
[1761416984726,0.048,111650.0,111640.0,0.52157099]
[1761416986827,0.0044,111650.0,111640.0,0.52157099]
[1761416987528,0.048,111650.0,111640.0,0.52157099]
[1761416987726,0.0044,111650.0,111640.0,0.52157099]
[1761416989229,0.048,111650.0,111640.0,0.52157099]
[1761416992525,0.0262,111650.0,111640.0,0.52157099]
[1761416993326,0.0044,111650.0,111640.0,0.52157099]
[1761416997227,0.0262,111650.0,111640.0,0.52157099]
[1761416998132,0.0262,111650.0,111640.0,0.55360891]
[1761416999426,0.0044,111650.0,111640.0,0.55360891]
[1761416999936,0.0044,111660.0,111650.0,0.05718]
[1761417000134,0.04651,111660.0,111650.0,0.20762099]
[1761417001338,0.06046,111660.0,111650.0,0.20762099]
[1761417001528,0.05151,111660.0,111650.0,0.20762099]
[1761417002539,0.05251,111660.0,111650.0,0.20762099]
[1761417006038,0.06619,111660.0,111650.0,0.20762099]
[1761417006243,0.09840248,111660.0,111650.0,0.20762099]
[1761417006535,0.0104,111660.0,111650.0,0.35806198]
[1761417006838,0.0104,111660.0,111650.0,0.3900999]
[1761417007441,0.05472,111660.0,111650.0,0.08921792]
[1761417007634,0.05472,111660.0,111650.0,0.23965891]
[1761417008338,0.03147,111660.0,111650.0,0.23965891]
[1761417008731,0.05472,111660.0,111650.0,0.23965891]
[1761417010039,0.05472,111660.0,111650.0,0.28783705]
[1761417010243,0.05472,111660.0,111650.0,0.23965891]
[1761417015247,0.0684,111660.0,111650.0,0.22703891]
[1761417015439,0.0104,111660.0,111650.0,0.23965891]
[1761417015748,0.05472,111660.0,111650.0,0.23965891]
[1761417018249,0.0684,111660.0,111650.0,0.23965891]
[1761417021648,0.0104,111660.0,111650.0,0.3900999]
[1761417022250,0.0104,111660.0,111650.0,0.43827804]
[1761417022550,0.0104,111660.0,111650.0,0.28783705]
[1761417022949,0.0104,111660.0,111650.0,0.43827804]
[1761417023250,0.0104,111660.0,111650.0,0.28783705]
[1761417026050,0.0104,111660.0,111650.0,0.49579672]
[1761417026253,0.0104,111660.0,111650.0,0.19491474]
[1761417026441,0.0104,111660.0,111650.0,0.49579672]
[1761417029155,0.0104,111660.0,111650.0,0.44761858]
[1761417029345,0.0104,111660.0,111650.0,0.49568228]
[1761417029545,0.0054,111660.0,111650.0,0.49568228]
[1761417029852,0.0074,111660.0,111650.0,0.49568228]
[1761417030653,0.0064,111660.0,111650.0,0.49568228]
[1761417031358,0.0044,111670.0,111660.0,0.1479986]
[1761417031546,0.0044,111670.0,111660.0,0.66100696]
[1761417032854,0.0064,111670.0,111660.0,0.66100696]
[1761417033650,0.04926,111670.0,111660.0,0.66100696]
[1761417034458,0.04926,111670.0,111660.0,0.57145836]
[1761417034658,0.04926,111670.0,111660.0,0.66100696]
[1761417034856,0.0064,111670.0,111660.0,0.51056597]
[1761417035346,0.0064,111670.0,111660.0,0.66100696]
[1761417036255,0.0044,111670.0,111660.0,0.66100696]
[1761417036450,0.0044,111670.0,111660.0,0.66300696]
[1761417037752,0.04791,111680.0,111670.0,0.05425]
[1761417037955,0.04791,111680.0,111670.0,0.23669489]
[1761417045356,0.04791,111680.0,111670.0,0.32623549]
[1761417046661,0.0044,111680.0,111670.0,0.44640384]
[1761417046862,0.0044,111690.0,111680.0,0.1452526]
[1761417046863,0.02612,111690.0,111680.0,0.1452526]
[1761417047064,0.02612,111690.0,111680.0,0.64072934]
[1761417047568,0.04791,111690.0,111680.0,0.50542467]
[1761417047859,0.06106,111690.0,111680.0,0.49307467]
[1761417048061,0.06206,111690.0,111680.0,0.49307467]
[1761417048261,0.06206,111690.0,111680.0,0.49507467]
[1761417049366,0.06106,111690.0,111680.0,0.49507467]
[1761417052379,0.22051091,111690.0,111680.0,0.002]
[1761417052584,0.22857715,111690.0,111680.0,0.002]
[1761417052970,0.09327248,111690.0,111680.0,0.002]
[1761417053174,0.09327248,111690.0,111680.0,0.15837467]
[1761417053385,0.22857715,111690.0,111680.0,0.18067467]
[1761417053883,0.09327248,111690.0,111680.0,0.18067467]
[1761417054085,0.22857715,111690.0,111680.0,0.18067467]
[1761417054286,0.09327248,111690.0,111680.0,0.18067467]
[1761417054583,0.22857715,111690.0,111680.0,0.18067467]
[1761417056380,0.27689276,111690.0,111680.0,0.18067467]
[1761417056576,0.14158809,111690.0,111680.0,0.18067467]
[1761417056971,0.08520162,111690.0,111680.0,0.18067467]
[1761417057884,0.08520162,111690.0,111680.0,0.49523467]
[1761417059981,0.06106,111690.0,111680.0,0.49523467]
[1761417061684,0.66106,111690.0,111680.0,0.49523467]
[1761417063388,0.22050629,111690.0,111680.0,0.49523467]
[1761417063586,0.22050629,111690.0,111680.0,0.18067467]
[1761417063788,0.22050629,111690.0,111680.0,0.13730467]
[1761417064286,0.08520162,111690.0,111680.0,0.04554]
[1761417064793,0.08520162,111690.0,111680.0,0.18084467]
[1761417065575,0.08520162,111690.0,111680.0,0.04554]
[1761417065783,0.08520162,111690.0,111680.0,0.18084467]
[1761417067389,0.08520162,111690.0,111680.0,0.04554]
[1761417067686,0.08520162,111690.0,111680.0,0.18084467]
[1761417067985,0.08520162,111690.0,111680.0,0.04554]
[1761417068181,0.08520162,111690.0,111680.0,0.18084467]
[1761417068381,0.08520162,111690.0,111680.0,0.04554]
[1761417068688,0.08520162,111690.0,111680.0,0.18084467]
[1761417069691,0.68520162,111690.0,111680.0,0.18084467]
[1761417070382,0.68520162,111690.0,111680.0,0.04554]
[1761417070584,0.22050629,111690.0,111680.0,0.18084467]
[1761417071484,0.08520162,111690.0,111680.0,0.18084467]
[1761417071677,0.08520162,111690.0,111680.0,0.04554]
[1761417071877,0.08520162,111690.0,111680.0,0.18084467]
[1761417073591,0.08520162,111690.0,111680.0,0.04554]
[1761417073793,0.08520162,111690.0,111680.0,0.18084467]
[1761417076791,0.07205162,111690.0,111680.0,0.18084467]
[1761417076995,0.08526162,111690.0,111680.0,0.04554]
[1761417077295,0.08526162,111690.0,111680.0,0.18084467]
[1761417078596,0.07205162,111690.0,111680.0,0.19319467]
[1761417079093,0.05026162,111690.0,111680.0,0.19319467]
[1761417079396,0.07140162,111690.0,111680.0,0.05789]
[1761417079583,0.07140162,111690.0,111680.0,0.19319467]
[1761417082402,0.02854162,111690.0,111680.0,0.41803174]
[1761417082595,0.0044,111690.0,111680.0,0.45003564]
[1761417083790,0.00332759,111690.0,111680.0,0.1794263]
[1761417084104,0.0044,111700.0,111690.0,0.1423545]
[1761417084402,0.0044,111730.0,111690.0,0.76165243]
[1761417084593,0.0044,111730.0,111720.0,0.40591401]
[1761417084788,0.0044,111730.0,111720.0,0.45082467]
[1761417084992,0.0044,111730.0,111710.0,0.0895082]
[1761417084993,0.03526,111720.0,111710.0,0.0895082]
[1761417085192,0.01321,111720.0,111710.0,0.12677619]
[1761417085503,0.0044,111730.0,111710.0,0.72677579]
[1761417085704,0.0044,111730.0,111710.0,0.12677579]
[1761417085705,0.0608,111730.0,111710.0,0.12677579]
[1761417085893,0.03526,111720.0,111710.0,0.12677579]
[1761417086090,0.0564,111720.0,111710.0,0.39738513]
[1761417086292,0.01321,111720.0,111710.0,0.39738513]
[1761417086698,0.01321,111720.0,111710.0,0.421436]
[1761417088093,0.01321,111720.0,111710.0,0.427436]
[1761417088499,0.0564,111720.0,111710.0,0.3379282]
[1761417089194,0.0564,111720.0,111710.0,0.05114343]
[1761417089601,0.0564,111720.0,111710.0,0.1864481]
[1761417090196,0.0564,111720.0,111710.0,0.17846794]
[1761417091807,0.0564,111720.0,111710.0,0.01927149]
[1761417092002,0.0564,111720.0,111710.0,0.15457616]
[1761417095299,0.0564,111720.0,111710.0,0.15451419]
[1761417095699,0.03526,111720.0,111710.0,0.28981886]
[1761417096007,0.05705,111720.0,111710.0,0.28981886]
[1761417104209,0.05705,111720.0,111710.0,0.31371064]
[1761417104511,0.05705,111720.0,111710.0,0.28981886]
[1761417105210,0.05705,111720.0,111710.0,0.31371064]
[1761417106105,0.05705,111720.0,111710.0,0.28981886]
[1761417106310,0.05705,111720.0,111710.0,0.31371619]
[1761417106518,0.05705,111720.0,111710.0,0.17841152]
[1761417106807,0.05705,111720.0,111710.0,0.31371619]
[1761417107215,0.05705,111720.0,111710.0,0.17841152]
[1761417108009,0.05705,111720.0,111710.0,0.15451419]
[1761417108801,0.05705,111720.0,111710.0,0.01920952]
[1761417116411,0.05665,111710.0,111700.0,0.02389733]
[1761417116714,0.37221,111710.0,111700.0,0.02389733]
[1761417117211,0.01325,111700.0,111690.0,0.20607583]
[1761417117417,0.05665,111700.0,111690.0,0.17420389]
[1761417118123,0.05665,111700.0,111690.0,0.02389733]
[1761417118816,0.05665,111700.0,111690.0,0.18520389]
[1761417119516,0.05665,111700.0,111690.0,0.03489733]
[1761417120215,0.05665,111700.0,111690.0,0.03589733]
[1761417120413,0.05665,111700.0,111690.0,0.012]
[1761417121018,0.65665,111700.0,111690.0,0.012]
[1761417122018,0.05665,111700.0,111690.0,0.012]
[1761417122220,0.05727,111680.0,111670.0,0.17420389]
[1761417122411,0.37279,111680.0,111670.0,0.17420389]
[1761417123918,0.37479,111680.0,111670.0,0.02389733]
[1761417124111,0.37479,111680.0,111670.0,0.17420389]
[1761417125021,0.37479,111680.0,111670.0,0.02389733]
[1761417125216,0.37479,111680.0,111660.0,0.20607583]
[1761417125524,0.05727,111670.0,111660.0,0.20607583]
[1761417126121,0.05727,111670.0,111660.0,0.17420389]
[1761417127210,0.06527,111670.0,111660.0,0.17420389]
[1761417127414,0.06527,111670.0,111660.0,0.17425115]
[1761417128119,0.06527,111670.0,111660.0,0.02394459]
[1761417128314,0.06527,111670.0,111660.0,0.17425115]
[1761417128514,0.06527,111670.0,111660.0,0.18766804]
[1761417129123,0.06527,111670.0,111660.0,0.03736148]
[1761417129315,0.06527,111670.0,111660.0,0.01341689]
[1761417130018,0.01319,111650.0,111640.0,0.02394459]
[1761417130222,0.37279,111650.0,111640.0,0.17425115]
[1761417130928,0.37279,111650.0,111640.0,0.02394459]
[1761417131224,0.37579,111650.0,111640.0,0.17525115]
[1761417133023,0.37587,111650.0,111640.0,0.17525115]
[1761417135634,0.06027,111650.0,111640.0,0.17525115]
[1761417135934,0.21223,111650.0,111640.0,0.17525115]
[1761417136123,0.37583,111650.0,111640.0,0.17525115]
[1761417136323,0.06027,111650.0,111640.0,0.17525115]
[1761417136531,0.37579,111650.0,111640.0,0.17525115]
[1761417137443,0.37579,111650.0,111640.0,0.02494459]
[1761417137733,0.37579,111650.0,111640.0,0.17525115]
[1761417139435,0.37579,111650.0,111640.0,0.02494459]
[1761417139631,0.03521,111670.0,111650.0,0.0895525]
[1761417139836,0.05727,111680.0,111660.0,0.15030656]
[1761417140040,0.05727,111680.0,111670.0,0.15030656]
[1761417142038,0.05727,111680.0,111670.0,0.16336883]
[1761417142224,0.06727,111680.0,111670.0,0.16336883]
[1761417144432,0.06727,111680.0,111670.0,0.01306227]
[1761417144628,0.06727,111680.0,111670.0,0.16336883]
[1761417144835,0.06727,111680.0,111670.0,0.16337964]
[1761417145741,0.06727,111680.0,111670.0,0.15030656]
[1761417145941,0.06727,111680.0,111670.0,0.16338357]
[1761417148442,0.06727,111680.0,111670.0,0.18732816]
[1761417151954,0.06727,111680.0,111670.0,0.0370216]
[1761417152154,0.06727,111680.0,111670.0,0.18732816]
[1761417153653,0.06727,111680.0,111670.0,0.0370216]
[1761417155146,0.06727,111680.0,111670.0,0.01307701]
[1761417155357,0.09135144,111680.0,111670.0,0.01307701]
[1761417156461,0.06727,111680.0,111670.0,0.16338357]
[1761417156648,0.09135144,111680.0,111670.0,0.16338357]
[1761417156854,0.06727,111680.0,111670.0,0.18732816]
[1761417157158,0.06727,111680.0,111670.0,0.16338357]
[1761417158762,0.05727,111680.0,111670.0,0.16338357]
[1761417158965,0.06227,111680.0,111670.0,0.16338357]
[1761417160257,0.04021,111680.0,111670.0,0.27686896]
[1761417160464,0.04021,111680.0,111670.0,0.3087409]
[1761417161158,0.06159,111680.0,111670.0,0.06889354]
[1761417161369,0.06159,111680.0,111670.0,0.2192001]
[1761417163565,0.06159,111680.0,111670.0,0.18732816]
[1761417165158,0.06159,111680.0,111670.0,0.2192001]
[1761417165364,0.06159,111680.0,111670.0,0.21922581]
[1761417168069,0.06159,111680.0,111670.0,0.19528122]
[1761417168461,0.06159,111680.0,111670.0,0.04497466]
[1761417168656,0.06159,111680.0,111670.0,0.06900163]
[1761417169061,0.06159,111680.0,111670.0,0.04497466]
[1761417169975,0.06159,111680.0,111670.0,0.19528122]
[1761417170170,0.06159,111680.0,111670.0,0.04497466]
[1761417170564,0.06159,111680.0,111670.0,0.19528122]
[1761417170765,0.06159,111680.0,111670.0,0.04497466]
[1761417170964,0.06159,111680.0,111670.0,0.18033373]
[1761417171160,0.06159,111680.0,111670.0,0.16723101]
[1761417172474,0.06159,111680.0,111670.0,0.19126951]
[1761417174476,0.06159,111680.0,111670.0,0.20438257]
[1761417175977,0.06159,111680.0,111670.0,0.19126951]
[1761417176377,0.06159,111680.0,111670.0,0.20438211]
[1761417183480,0.06159,111680.0,111670.0,0.18034361]
[1761417183680,0.06159,111680.0,111670.0,0.14847167]
[1761417186484,0.06159,111680.0,111670.0,0.20457621]
[1761417186786,0.06159,111680.0,111670.0,0.18053141]
[1761417189781,0.06159,111680.0,111670.0,0.18053789]
[1761417190285,0.08575763,111680.0,111670.0,0.20458628]
[1761417190485,0.08575763,111680.0,111670.0,0.51978628]
[1761417190682,0.06159,111680.0,111670.0,0.49573789]
[1761417191078,0.06159,111680.0,111670.0,0.58527869]
[1761417191589,0.06159,111680.0,111670.0,0.49573789]
[1761417193288,0.08575763,111680.0,111670.0,0.49573789]
[1761417195791,0.0857638,111680.0,111670.0,0.51978765]
[1761417198988,0.22112287,111680.0,111670.0,0.35237127]
[1761417199192,0.22112287,111680.0,111670.0,0.48773034]
[1761417199691,0.22112287,111680.0,111670.0,0.03717127]
[1761417199898,0.25334638,111680.0,111670.0,0.03717127]
[1761417200083,0.22917258,111680.0,111670.0,0.01311908]
[1761417200394,0.25334819,111680.0,111670.0,0.01311908]
[1761417203291,0.22112468,111680.0,111670.0,0.01311908]
[1761417203586,0.08576561,111680.0,111670.0,0.01311908]
[1761417203992,0.08576561,111680.0,111670.0,0.14847815]
[1761417206392,0.08576561,111680.0,111670.0,0.59889281]
[1761417206585,0.08576561,111680.0,111670.0,0.622945]
[1761417206885,0.06159,111680.0,111670.0,0.51964567]
[1761417208493,0.06159,111680.0,111670.0,0.65500474]
[1761417208884,0.06159,111680.0,111670.0,0.51964567]
[1761417210088,0.06159,111680.0,111670.0,0.49559348]
[1761417210284,0.04021,111680.0,111670.0,0.49559348]
[1761417210489,0.01819,111680.0,111670.0,0.72049325]
[1761417211393,0.04064,111680.0,111670.0,0.72049325]
[1761417213197,0.04064,111680.0,111670.0,0.74451757]
[1761417214090,0.06308,111680.0,111670.0,0.6091585]
[1761417215699,0.06308,111680.0,111670.0,0.5196178]
[1761417219502,0.06308,111680.0,111670.0,0.6091585]
[1761417227411,0.06308,111680.0,111670.0,0.38425873]
[1761417227614,0.06308,111680.0,111670.0,0.5196178]
[1761417229404,0.01819,111680.0,111670.0,0.74451757]
[1761417229610,0.06344,111680.0,111670.0,0.65497687]
[1761417229804,0.06344,111680.0,111670.0,0.5196178]
[1761417230004,0.06344,111680.0,111670.0,0.65497687]
[1761417230212,0.06344,111680.0,111670.0,0.63095255]
[1761417230412,0.06344,111680.0,111670.0,0.49559348]
[1761417230706,0.005,111680.0,111670.0,0.51058209]
[1761417230921,0.08315561,111690.0,111670.0,0.60012279]
[1761417231208,0.01373,111690.0,111680.0,0.18240742]
[1761417231412,0.01373,111690.0,111680.0,0.19550209]
[1761417232003,0.02173,111690.0,111680.0,0.19550209]
[1761417232605,0.008,111690.0,111680.0,0.28503469]
[1761417233002,0.008,111690.0,111680.0,0.3331243]
[1761417237205,0.008,111690.0,111680.0,0.33311096]
[1761417237718,0.008,111690.0,111680.0,0.28502135]
[1761417240316,0.008,111690.0,111680.0,0.27696475]
[1761417240615,0.008,111690.0,111680.0,0.30902449]
[1761417241318,0.008,111690.0,111680.0,0.27696475]
[1761417241618,0.04462,111690.0,111680.0,0.27696475]
[1761417241815,0.0671,111690.0,111680.0,0.27696475]
[1761417243719,0.0671,111690.0,111680.0,0.27696495]
[1761417244323,0.0671,111690.0,111680.0,0.50219215]
[1761417245819,0.0671,111690.0,111680.0,0.50218453]
[1761417248215,0.0671,111690.0,111680.0,0.59171733]
[1761417250223,0.0671,111690.0,111680.0,0.59977393]
[1761417253120,0.0671,111690.0,111680.0,0.51024113]
[1761417256935,0.0671,111690.0,111680.0,0.5102519]
[1761417257426,0.0671,111690.0,111680.0,0.55834151]
[1761417258632,0.0671,111690.0,111680.0,0.40799383]
[1761417258833,0.0671,111690.0,111680.0,0.55834151]
[1761417260338,0.0671,111690.0,111680.0,0.52628177]
[1761417261130,0.0671,111690.0,111680.0,0.61581457]
[1761417267242,0.0671,111690.0,111680.0,0.61597233]
[1761417280154,0.0671,111690.0,111680.0,0.59995928]
[1761417289470,0.0671,111690.0,111680.0,0.4496116]
[1761417289671,0.0671,111690.0,111680.0,0.59995928]
[1761417290369,0.0671,111690.0,111680.0,0.61597233]
[1761417290668,0.0671,111690.0,111680.0,0.73624279]
[1761417298470,0.0671,111690.0,111680.0,0.72300055]
[1761417298670,0.0671,111690.0,111680.0,0.64667934]
[1761417299171,0.0671,111690.0,111680.0,0.63346775]
[1761417299467,0.0671,111690.0,111680.0,0.64667933]
[1761417302176,0.0671,111690.0,111680.0,0.51137026]
[1761417302671,0.0671,111690.0,111680.0,0.54344651]
[1761417303074,0.0671,111690.0,111680.0,0.4953569]
[1761417303279,0.09128162,111690.0,111680.0,0.51941496]
[1761417303471,0.09128162,111690.0,111680.0,0.48733871]
[1761417304373,0.0912658,111690.0,111680.0,0.48732382]
[1761417305781,0.0912658,111690.0,111680.0,0.35201475]
[1761417305973,0.0912658,111690.0,111680.0,0.48732382]
[1761417306369,0.0912658,111690.0,111680.0,0.03725475]
[1761417306575,0.0912658,111690.0,111680.0,0.17256382]
[1761417309284,0.0671,111690.0,111680.0,0.17256382]
[1761417315784,0.0671,111690.0,111680.0,0.30787289]
[1761417315984,0.0671,111690.0,111680.0,0.03725475]
[1761417316185,0.0671,111690.0,111680.0,0.17256382]
[1761417316582,0.0671,111690.0,111680.0,0.30787289]
[1761417316782,0.0671,111690.0,111680.0,0.17256382]
[1761417317387,0.0665,111690.0,111680.0,0.17256382]
[1761417318589,0.0665,111690.0,111680.0,0.20464007]
[1761417318794,0.0665,111690.0,111680.0,0.33994914]
[1761417319186,0.0665,111690.0,111680.0,0.069331]
[1761417319385,0.0665,111690.0,111680.0,0.33994914]
[1761417320596,0.0665,111690.0,111680.0,0.20464007]
[1761417321086,0.0665,111690.0,111680.0,0.33994914]
[1761417325094,0.0665,111690.0,111680.0,0.069331]
[1761417325301,0.0665,111690.0,111680.0,0.33994914]
[1761417327202,0.0665,111690.0,111680.0,0.31590597]
[1761417330202,0.0906658,111690.0,111680.0,0.3078692]
[1761417333704,0.0906658,111690.0,111680.0,0.03725106]
[1761417333904,0.0906658,111690.0,111680.0,0.3078692]
[1761417337806,0.0826658,111690.0,111680.0,0.3078692]
[1761417337998,0.0836658,111690.0,111680.0,0.3078692]
[1761417340308,0.0595,111690.0,111680.0,0.31590597]
[1761417340799,0.0595,111690.0,111680.0,0.04528783]
[1761417341004,0.0595,111690.0,111680.0,0.1805969]
[1761417352717,0.0595,111690.0,111680.0,0.19563781]
[1761417353117,0.0836658,111690.0,111680.0,0.19563781]
[1761417355120,0.0595,111690.0,111680.0,0.19563781]
[1761417360224,0.0595,111690.0,111680.0,0.18242623]
[1761417361518,0.0595,111690.0,111680.0,0.19561941]
[1761417364135,0.0595,111690.0,111680.0,0.19561955]
[1761417365636,0.08368263,111690.0,111680.0,0.19561955]
[1761417365836,0.0595,111690.0,111680.0,0.19561955]
[1761417366335,0.08368263,111690.0,111680.0,0.19561955]
[1761417370235,0.08368263,111690.0,111680.0,0.18760267]
[1761417370426,0.11590614,111690.0,111680.0,0.18760267]